Cogmind - Beta 11 X8 @@@ ROGUE MODE // 2021.11.29 @ 02:56:53 Player: Runia Result: Destroyed by H-55 Commando with Gauss Rifle Performance ------------- Evolutions (1) 500 Regions Visited (6) 1200 Robots Destroyed (73) 365 Value Destroyed (1598) 1598 Prototype IDs (14) 280 Alien Tech Used (0) 0 Bonus (63) 63 TOTAL SCORE: 4006 Bonus ------- High Alert Combat Kills 11 Follower Combat Kills 52 Cogmind --------- Core Integrity 0/400 Matter 245/300 Energy 200/200 System Corruption 0% Temperature Cool (0) Movement Treading (400) Ox3 Location -8/Mines Parts ------- > --- POWER (1) -------- Cold Fusion Reactor > --- PROPULSION (2) --- Light Treads Compact Wheel > --- UTILITY (3) ------ High-capacity Storage Unit Experimental Targeting Computer Light Armor Plating > --- WEAPON (3) ------- Improved Assault Rifle 8R-AWN's Boregun > --- INVENTORY (20) --- Reinforced Fission Core Light Treads Advanced Myomer Leg Advanced Myomer Leg Combat Antigrav System Experimental Heat Sink High-capacity Matter Pod (200) Experimental Sensor Array Advanced Weapon Cycler Advanced Transmission Jammer 8R-AWN's Armor/EX Advanced Component Analysis Suite System Purifier AS-neutralizer No. 17b Assault Rifle Assault Rifle 8R-AWN's Boregun Grenade Launcher Rocket Launcher Peak State ------------ > --- POWER ------------ Cold Fusion Reactor > --- PROPULSION ------- Light Treads Compact Wheel > --- UTILITY ---------- High-capacity Storage Unit Experimental Targeting Computer Advanced Component Analysis Suite > --- WEAPON ----------- Heavy Assault Rifle Improved Assault Rifle 8R-AWN's Boregun > --- INVENTORY -------- Reinforced Fission Core Light Treads Light Treads Advanced Myomer Leg Advanced Myomer Leg Combat Antigrav System Experimental Heat Sink High-capacity Matter Pod Gravity Neutralizing Apparatus Advanced Transmission Jammer Light Armor Plating 8R-AWN's Armor/EX System Purifier AS-neutralizer No. 17b Assault Rifle Assault Rifle 8R-AWN's Boregun Grenade Launcher Rocket Launcher [Rating: 48] Favorites ----------- Power Improved Ion Engine Engine Improved Ion Engine Power Core Light Neutrino Core Reactor Cold Fusion Reactor Propulsion Light Treads Treads Light Treads Leg Aluminum Leg Wheel Compact Wheel Utility Medium Armor Plating Device Advanced Component Analysis Suite Storage High-capacity Storage Unit Processor Improved Targeting Computer Protection Medium Armor Plating Weapon Improved Assault Rifle Ballistic Gun Improved Assault Rifle Launcher Rocket Launcher Special Weapon Plasma Cutter Build | -11 -10 -10 -9 -9 -9 -8 ------- Run | Scr Mat Min Mat Min Exi Min Slots Evolved 2 | . . . 2 . . . Power . | . . . . . . . Propulsion . | . . . . . . . Utility 1 | . . . 1 . . . Weapon 1 | . . . 1 . . . Parts Attached 53 | 2 3 . 21 1 26 . Power 5 | . . . 2 . 3 . Engine 3 | . . . 2 . 1 . Core 1 | . . . . . 1 . Reactor 1 | . . . . . 1 . Propulsion 13 | 2 . . 5 1 5 . Treads 11 | 2 . . 5 . 4 . Leg . | . . . . . . . Wheel 2 | . . . . 1 1 . Hover . | . . . . . . . Flight . | . . . . . . . Utility 15 | . 1 . 7 . 7 . Device 1 | . . . . . 1 . Storage 3 | . 1 . 2 . . . Processor 3 | . . . 1 . 2 . Hackware . | . . . . . . . Protection 8 | . . . 4 . 4 . Artifact . | . . . . . . . Weapon 20 | . 2 . 7 . 11 . Energy Gun . | . . . . . . . Energy Cannon . | . . . . . . . Ballistic Gun 16 | . 2 . 7 . 7 . Ballistic Cannon . | . . . . . . . Launcher 2 | . . . . . 2 . Special Weapon 2 | . . . . . 2 . Impact Weapon . | . . . . . . . Slashing Weapon . | . . . . . . . Piercing Weapon . | . . . . . . . Special Melee Weapon . | . . . . . . . Unidentified Prototypes 4 | . . . . . 4 . Parts Lost 8 | . . . . . 7 1 Power 1 | . . . . . 1 . Propulsion 1 | . . . . . 1 . Utility 3 | . . . . . 3 . Weapon 3 | . . . . . 2 1 Highest Loss Streak 4 | . . . . . 4 1 Average Slot Usage (%) 95 | . 85 85 96 100 99 100 Engine 10 | . 14 14 10 11 8 . Treads 18 | . 28 28 22 11 12 11 Wheel 4 | . . . . 10 9 11 Storage 12 | . 14 14 12 11 11 11 Processor 8 | . . . 8 11 11 11 Protection 7 | . . . 8 11 9 11 Ballistic Gun 31 | . 28 28 32 33 31 33 Naked Turns . | . . . . . . . Heaviest Build 67 | 13 31 31 63 63 67 . Greatest Support 40 | 40 40 40 40 40 40 . Greatest Overweight (x) 4 | . . . 1 3 4 . Average Overweight (x) 1 | . . . . 2 3 . Largest Inventory Capacity 20 | 8 15 15 20 20 20 20 Average Capacity 17 | 8 11 15 16 20 20 20 Most Carried 20 | 6 15 15 20 20 20 20 Average Carried 16 | 4 10 14 15 19 18 20 Final Capacity 20 | 8 15 15 20 20 20 20 Final Carried 20 | 2 15 15 20 20 20 20 Class Distribution -------------------- 53% | Scavenger-Gunner 22% | Mutant 17% | Gunner 5% | Scavenger-Mutant Dominant Class ---------------- Mutant | -10/Materials Mutant | -10/Mines Scavenger-Gunner | -9/Materials Scavenger-Gunner | -9/Mines Scavenger-Gunner | -9/Exiles Scavenger-Gunner | -8/Mines Resources | -11 -10 -10 -9 -9 -9 -8 ----------- Run | Scr Mat Min Mat Min Exi Min Matter Collected 2592 | 193 439 48 833 241 838 . Remotely . | . . . . . . . Salvage Created 3423 | . 509 123 1736 441 614 . Parts 252 | . 36 5 110 20 81 . Haulers Intercepted 4 | . 1 . 3 . . . Recyclers Shooed 5 | . 3 . 2 . . . Parts Field Recycled . | . . . . . . . Retrieved Matter . | . . . . . . . Parts Self-Destructed . | . . . . . . . Prevented . | . . . . . . . Kills | -11 -10 -10 -9 -9 -9 -8 ------- Run | Scr Mat Min Mat Min Exi Min Combat Hostiles Destroyed 51 | . 7 2 24 12 6 . Guns 47 | . 7 2 24 12 2 . AOE 4 | . . . . . 4 . Classes Destroyed 12 | . 5 1 1 3 2 . Worker 2 | . . 1 . 1 . . Builder 3 | . 1 . 2 . . . Tunneler 1 | . . . . 1 . . Hauler 4 | . 1 . 3 . . . Recycler 10 | . 2 . 6 2 . . Turret 1 | . . . . . 1 . Watcher 3 | . 2 . 1 . . . Swarmer 4 | . . . . 4 . . Grunt 29 | . 7 2 18 2 . . Sentry 6 | . . . 6 . . . Zionite 7 | . . . . . 7 . Assembled 11 | . . . . 6 5 . Best Kill Streak 7 | . 4 2 7 4 5 . Combat Bots Only 4 | . 3 2 3 4 4 . Max Kills in Single Turn 2 | . 1 1 2 1 2 . Gunslinging 1 | . . . 1 . . . Exploded 2 | . . . . . 2 . Melee . | . . . . . . . Uniques/NPCs Destroyed 4 | . . . . . 4 . 8R-AWN (-9/Exiles) EX-BIN (-9/Exiles) EX-DEC (-9/Exiles) EX-HEX (-9/Exiles) Combat | -11 -10 -10 -9 -9 -9 -8 -------- Run | Scr Mat Min Mat Min Exi Min Damage Taken 2606 | . 190 67 986 203 1072 88 Core 463 | . 62 . 127 38 216 20 Absorbed by Shields . | . . . . . . . Core Remaining (%) 87 | 100 . 75 . . . . Volleys Fired 218 | . 29 6 80 29 71 3 Largest 3 | . 2 2 3 3 3 3 Hottest 83 | . 46 46 69 69 83 76 Shots Fired 559 | . 58 12 239 87 155 8 Gun 546 | . 58 12 239 87 142 8 Cannon . | . . . . . . . Launcher 3 | . . . . . 3 . Special 10 | . . . . . 10 . Kinetic 546 | . 58 12 239 87 142 8 Thermal 10 | . . . . . 10 . Explosive 3 | . . . . . 3 . Electromagnetic . | . . . . . . . Robot Hit Streak 29 | . 6 6 16 17 29 5 Robot Miss Streak 4 | . 4 2 2 2 3 1 Penetration Max 1 | . . . . . 1 . Secondary Targets 2 | . . . 2 . . . Max Gunslinging Chain 1 | . . . 1 . . . Shots Hit Robots 386 | . 46 10 162 44 117 7 Core Hits 166 | . 28 7 58 23 48 2 Critical Kills 5 | . . . 1 . 4 . Critical Parts Destroyed 10 | . . . 1 1 8 . Critical Strikes 15 | . . . 2 1 12 . Destroy 15 | . . . 2 1 12 . Melee Attacks . | . . . . . . . Impact . | . . . . . . . Slashing . | . . . . . . . Piercing . | . . . . . . . Sneak Attacks . | . . . . . . . Combat Hostiles . | . . . . . . . Follow-up Attacks . | . . . . . . . Damage Inflicted 5664 | . 695 137 2203 704 1847 78 Guns 5443 | . 695 137 2203 704 1626 78 Cannons . | . . . . . . . Explosions 211 | . . . . . 211 . Melee . | . . . . . . . Ramming . | . . . . . . . Kinetic 5443 | . 695 137 2203 704 1626 78 Thermal 10 | . . . . . 10 . Explosive 211 | . . . . . 211 . Electromagnetic . | . . . . . . . Impact . | . . . . . . . Slashing . | . . . . . . . Piercing . | . . . . . . . Highest Corruption 1 | . 1 1 . . . . Average Corruption 1 | . 1 1 . . . . Corruption Purged . | . . . . . . . Effects 1 | . . 1 . . . . Message Errors 1 | . . 1 . . . . Overload Shots . | . . . . . . . Overflow Damage . | . . . . . . . Projectiles . | . . . . . . . Explosions . | . . . . . . . Melee . | . . . . . . . Knockbacks . | . . . . . . . Impact . | . . . . . . . Kinetic . | . . . . . . . Secondary . | . . . . . . . Self-Inflicted Damage . | . . . . . . . Shots . | . . . . . . . Rammed . | . . . . . . . Targets Rammed . | . . . . . . . Kicked . | . . . . . . . Crushed . | . . . . . . . Highest Temperature 106 | . 4 4 106 105 54 . Average Temperature 24 | . 1 2 26 33 17 . Received Heat Transfer 700 | . 108 39 435 118 . . Siege Activations . | . . . . . . . Robots Corrupted . | . . . . . . . Combat Hostiles . | . . . . . . . Parts Fried . | . . . . . . . Impact Corruptions . | . . . . . . . Robots Melted . | . . . . . . . Combat Hostiles . | . . . . . . . Parts Melted . | . . . . . . . Heat Transferred 90 | . . . . . 90 . Parts Sabotaged . | . . . . . . . Parts Stolen . | . . . . . . . Parts Stripped . | . . . . . . . Power Chain Reactions . | . . . . . . . Missiles Intercepted . | . . . . . . . Alert | -11 -10 -10 -9 -9 -9 -8 ------- Run | Scr Mat Min Mat Min Exi Min Peak Influence 438 | . 184 98 438 304 . . Initial 138 | . . 43 37 138 . . Average 129 | . 77 53 155 162 . . Maximum Alert Level 2 | . . . 2 1 . . Low Security (%) 82 | 100 100 100 73 76 . 100 Level 1 17 | . . . 26 23 . . Level 2 . | . . . . . . . Level 3 . | . . . . . . . Level 4 . | . . . . . . . Level 5 . | . . . . . . . High Security . | . . . . . . . Max Security . | . . . . . . . Squads Dispatched 5 | . 2 . 3 . . . Investigation 4 | . 2 . 2 . . . Extermination . | . . . . . . . Reinforcement 1 | . . . 1 . . . Assault . | . . . . . . . Garrison . | . . . . . . . Intercept . | . . . . . . . Construction Impeded . | . . . . . . . Haulers Reinforced . | . . . . . . . Active Scanning Responses . | . . . . . . . Cargo Convoy Interrupts . | . . . . . . . Stealth | -11 -10 -10 -9 -9 -9 -8 --------- Run | Scr Mat Min Mat Min Exi Min Distress Signals 4 | . 3 . 1 . . . Communications Jammed . | . . . . . . . Distress Signals . | . . . . . . . Times Spotted 85 | . 11 2 35 16 20 1 Peak Tracking Total 11 | . 3 2 4 5 11 1 Tactical Retreats 13 | . . . 2 3 8 . Traps | -11 -10 -10 -9 -9 -9 -8 ------- Run | Scr Mat Min Mat Min Exi Min Traps Triggered . | . . . . . . . Indirectly . | . . . . . . . Trap Hack Attempts . | . . . . . . . Triggered . | . . . . . . . Disarmed . | . . . . . . . Reprogrammed . | . . . . . . . Reused . | . . . . . . . Traps Extracted . | . . . . . . . Installed . | . . . . . . . Triggered . | . . . . . . . Exploded 3 | . . . . . 3 . Machines | -11 -10 -10 -9 -9 -9 -8 ---------- Run | Scr Mat Min Mat Min Exi Min Machines Disabled 10 | . . . 1 . 9 . Max in Single Turn 2 | . . . 1 . 2 . Machines Sabotaged . | . . . . . . . Garrisons Compromised . | . . . . . . . Overloaded Fab Kills . | . . . . . . . Hacking | -11 -10 -10 -9 -9 -9 -8 --------- Run | Scr Mat Min Mat Min Exi Min Machines Accessed 18 | . 7 . 9 1 1 . Terminals 11 | . 5 . 5 1 . . Fabricators . | . . . . . . . Repair Stations 1 | . . . 1 . . . Recycling Units 4 | . 2 . 2 . . . Scanalyzers 1 | . . . 1 . . . Garrison Access . | . . . . . . . Total Hacks 46 | . 19 . 24 2 1 . Successful 26 | . 8 . 15 2 1 . Failed 20 | . 11 . 9 . . . Catastrophic 3 | . . . 3 . . . Database Lockouts . | . . . . . . . Manual 21 | . 12 . 7 2 . . Terminals 31 | . 16 . 13 2 . . Fabricators . | . . . . . . . Repair Stations 6 | . . . 6 . . . Recycling Units 6 | . 3 . 3 . . . Scanalyzers 2 | . . . 2 . . . Garrison Access . | . . . . . . . Terminal Hacks 17 | . 7 . 7 2 1 . Record 1 | . . . . . 1 . Part Schematic 1 | . 1 . . . . . Prototype ID Bank 3 | . 2 . . 1 . . Emergency Access Points 2 | . . . 2 . . . Terminal Index 1 | . 1 . . . . . Recycling Unit Index 1 | . 1 . . . . . Unreport Threat 2 | . . . 2 . . . Locate Traps 1 | . . . 1 . . . Hauler Manifests 1 | . 1 . . . . . Zone Layout 4 | . 1 . 2 1 . . Fabricator Hacks . | . . . . . . . Repair Station Hacks 4 | . . . 4 . . . Scan Component 2 | . . . 2 . . . Repair 2 | . . . 2 . . . Recycling Unit Hacks . | . . . . . . . Scanalyzer 2 | . . . 2 . . . Insert Component 1 | . . . 1 . . . Analyze 1 | . . . 1 . . . Garrison Access Hacks . | . . . . . . . Unauthorized Hacks 3 | . 1 . 2 . . . Terminals . | . . . . . . . Fabricators . | . . . . . . . Repair Stations . | . . . . . . . Recycling Units 3 | . 1 . 2 . . . Tunnel 3 | . 1 . 2 . . . Scanalyzers . | . . . . . . . Garrison Access . | . . . . . . . Data Cores Recovered . | . . . . . . . Used . | . . . . . . . Hacking Detections 13 | . 5 . 7 1 . . Full Trace Events 1 | . 1 . . . . . Feedback Events 1 | . 1 . . . . . Corruption 1 | . 1 . . . . . Feedback Blocked . | . . . . . . . Robot Schematics Acquired . | . . . . . . . Robots Built . | . . . . . . . Authchips . | . . . . . . . Time . | . . . . . . . Total Robot Build Rating . | . . . . . . . Part Schematics Acquired 2 | . 1 . 1 . . . Parts Built . | . . . . . . . Authchips . | . . . . . . . Time . | . . . . . . . Total Part Build Rating . | . . . . . . . Parts Repaired 2 | . . . 2 . . . Time 64 | . . . 64 . . . Parts Recycled . | . . . . . . . Recycled Matter . | . . . . . . . Retrieved Matter . | . . . . . . . Retrieved Components . | . . . . . . . Parts Scanalyzed 1 | . . . 1 . . . Part Schematics Acquired 1 | . . . 1 . . . Parts Damaged . | . . . . . . . Bothacking | -11 -10 -10 -9 -9 -9 -8 ------------ Run | Scr Mat Min Mat Min Exi Min Used RIF Installer . | . . . . . . . Robots Hacked . | . . . . . . . Non-combat . | . . . . . . . Combat . | . . . . . . . Robot Hacks Applied . | . . . . . . . Relay Couplers Released . | . . . . . . . Fabnet Peak Effective % . | . . . . . . . Robots Rewired . | . . . . . . . Allies Hacked . | . . . . . . . Hacks Repelled . | . . . . . . . Allies | -11 -10 -10 -9 -9 -9 -8 -------- Run | Scr Mat Min Mat Min Exi Min Total Allies 1 | . . 1 . . . . Largest Group 1 | . . 1 1 . . . Highest-Rated Group 31 | . . 31 31 . . . Highest-Rated Ally 31 | . . 31 31 . . . Total Orders . | . . . . . . . Ally Attacks 10 | . . . 10 . . . Total Damage 148 | . . . 148 . . . Kills 2 | . . . 2 . . . Allies Corrupted . | . . . . . . . Allies Melted . | . . . . . . . Intel | -11 -10 -10 -9 -9 -9 -8 ------- Run | Scr Mat Min Mat Min Exi Min Robot Analysis Total . | . . . . . . . Derelict Logs Recovered 1 | . . . . 1 . . Drone Launches . | . . . . . . . Drone Recoveries . | . . . . . . . Exploration | -11 -10 -10 -9 -9 -9 -8 ------------- Run | Scr Mat Min Mat Min Exi Min Turns Passed 4983 | 4 713 321 1636 692 1608 9 Spaces Moved 2289 | 1 376 185 592 377 758 . Core . | . . . . . . . Treads 1178 | 1 376 185 592 8 16 . Legs . | . . . . . . . Wheels 1111 | . . . . 369 742 . Hover . | . . . . . . . Flight . | . . . . . . . Fastest Speed 145 | 160 160 160 160 145 145 . Average Speed 167 | 160 160 160 207 147 151 . Slowest Speed 400 | 160 160 160 240 240 400 . Overloaded Moves . | . . . . . . . Propulsion Burnouts . | . . . . . . . Robots Hopped . | . . . . . . . Cave-ins Triggered . | . . . . . . . Exploration Rate (%) 42 | 2 59 32 60 64 78 2 Regions Visited 6 Branch Regions 4 Pre-discovered Areas 4 | . 1 . 2 . 1 . Known Exits Taken . | . . . . . . . Unknown Exits Taken 6 | 1 1 1 1 1 1 . Scrap Searched 1 | . . . . 1 . . Spaces Dug . | . . . . . . . Terrain Destroyed 30 | . . . . . 30 . Melee . | . . . . . . . Projectile 8 | . . . . . 8 . AOE 20 | . . . . . 20 . Terrain Rammed . | . . . . . . . Walls Destroyed . | . . . . . . . Machines Disabled . | . . . . . . . Actions | -11 -10 -10 -9 -9 -9 -8 --------- Run | Scr Mat Min Mat Min Exi Min Total 3003 | 6 429 199 838 450 1078 3 Wait 338 | . 6 7 105 38 182 . Move 2283 | . 375 184 591 376 757 . Hop . | . . . . . . . Pick Up 59 | . 14 1 18 3 23 . Fast Attach 5 | . 1 . 3 . 1 . Attach 16 | 2 . . 4 . 10 . Detach . | . . . . . . . Swap 32 | . 2 . 14 1 15 . Drop 52 | 4 2 1 23 3 19 . Fire 218 | . 29 6 80 29 71 3 Melee . | . . . . . . . Ram . | . . . . . . . Kick . | . . . . . . . Crush . | . . . . . . . Escape Stasis . | . . . . . . . Rewire . | . . . . . . . Trap . | . . . . . . . Miscellaneous . | . . . . . . . Route ------- -11/Scrapyard -10/Materials (discovered 2 exits: *Mat / [*Min]) -10/Mines (discovered 2 exits: *Mat x2) -9/Materials (discovered 3 exits: [*Mat x2] / *Min) -9/Mines -9/Exiles -8/Mines History --------- Turn | Location | Event 5 | -11/Scrapyard | Discovered new exit (range 0) 5 | -11/Scrapyard | Entered Materials 318 | -10/Materials | Build established: Mutant 632 | -10/Materials | Discovered new exit (range 4) 691 | -10/Materials | Discovered new exit (range 13) 718 | -10/Materials | Entered Mines 947 | -10/Mines | Discovered new exit (range 9) 965 | -10/Mines | Received a Rocket Launcher from a helpful Derelict 1015 | -10/Mines | Discovered new exit (range 13) 1030 | -10/Mines | Received a Mining Laser from a helpful Derelict 1039 | -10/Mines | Entered Materials 1039 | -9/Materials | Accompanied by 1 ally 1039 | -9/Materials | Evolved 2 slots: Utility x1, Weapon x1 1384 | -9/Materials | Build established: Gunner 1443 | -9/Materials | Discovered new exit (range 15) 1914 | -9/Materials | Discovered new exit (range 5) 2052 | -9/Materials | Build established: Scavenger-Gunner 2519 | -9/Materials | Discovered new exit (range 12) 2587 | -9/Materials | Repaired Med. Armor Plating 2620 | -9/Materials | Repaired Imp. Ion Engine 2675 | -9/Materials | Entered Mines 2678 | -9/Mines | Joined a pair of Derelicts in attacking an 0b10 outpost 2928 | -9/Mines | Learned Materials terminal intel 3115 | -9/Mines | Found a damaged Exp. Sensor Array with a note attached 3119 | -9/Mines | Found Prototype Device 3135 | -9/Mines | Assembled infested the area 3359 | -9/Mines | Deemed a non-threat by the Exiles lab entrance 3361 | -9/Mines | Discovered new exit (range 5) 3367 | -9/Mines | Entered Exiles 3402 | -9/Exiles | Met 8R-AWN 3425 | -9/Exiles | Met EX-HEX 3546 | -9/Exiles | Met EX-DEC 3552 | -9/Exiles | Learned location of Zion (-7) 3745 | -9/Exiles | Discovered new exit (range 12) 4051 | -9/Exiles | Attacked by the Exiles 4168 | -9/Exiles | Core integrity fell below 50% 4209 | -9/Exiles | Lost 4 parts (1p2u1w) 4221 | -9/Exiles | Core integrity fell below 20% 4234 | -9/Exiles | Destroyed 8R-AWN 4252 | -9/Exiles | Found Prototype Ballistic Gun 4259 | -9/Exiles | Found Prototype Processor 4264 | -9/Exiles | Lost 3 parts (1n1u1w) 4266 | -9/Exiles | Found Prototype Protection 4269 | -9/Exiles | Found Prototype Ballistic Gun 4277 | -9/Exiles | Found Prototype Device 4283 | -9/Exiles | Identified 8R-AWN's Boregun (x2) 4286 | -9/Exiles | Identified Exp. Targeting Computer 4526 | -9/Exiles | Destroyed EX-BIN 4538 | -9/Exiles | Destroyed EX-DEC 4588 | -9/Exiles | Destroyed EX-HEX 4677 | -9/Exiles | Found Prototype Device 4758 | -9/Exiles | Identified 8R-AWN's Armor/EX 4769 | -9/Exiles | Identified AS-neutralizer No. 17b 4779 | -9/Exiles | Identified System Purifier 4975 | -9/Exiles | Entered Mines 4984 | -8/Mines | Destroyed by H-55 Commando with Gauss Rifle Last Messages --------------- 04821_ Dropped Imp. Assault Rifle. 04829_ Dropped Lgt. Treads. 04830_ Acquired Adv. Weapon Cycler. 04842_ Acquired 23 matter. 04863_ Acquired 17 matter. 04874_ Acquired 28 matter. 04970_ Dropped Gravity Neutralizing Apparatus. 04970_ Acquired Prototype Device. LOCATION=UNKNOWN GOAL=ESCAPE 04975_ HV Slug penetrates H-55 Commando. 04975_ HV Slug penetrates Wall. 04976_ Penetrated by Slug. 04978_ Slug penetrates Wall. 04979_ HV Slug penetrates Wall. 04981_ Penetrated by Slug. 04981_ Hvy. Assault Rifle destroyed. 04982_ HV Slug penetrates H-55 Commando. 04982_ HV Slug penetrates Wall. 04984_ Penetrated by Slug. Map ----- +----------------------------------------------------+ | ??????????????????????????????????????????????? | | ??????????????????????????????????????????????? | | ??????????????????????????????????????????????? | | ??????????????????????????????????????????????? | | ??????????????????????????????????????????????? | | ??????????????????????????????????????????????? | | ??????????????????????????????????????????????? | | ??????????????????????????????????????????????? | | ??????????????????????????????????????????????? | | ??????????????????????????????????????????????? | | ??????????????????????????????????????????????? | | ??????????????????????????????????????????????? | | ??????????????????????????????????????????????? | | ??????????????????????????????????????????????? | | ??????????????????????????????????????????????? | | ??????????????????????????????????????????????? | | ??????????????????????????????????????????????? | | ??????????????????????????????????????????????? | | ??????????????????????????????????????????????? | | ??????????????????????????????????????????????? | | ??????????????????????????????????????????????? | | ??????????????????########????????????????????? | | ?????????????????## ###??????????????????? | | ?????????????????#T ???????????????????? | | ??????????????????# #????????????????????? | | ??????????????????# @ #????????????????????? | | ??????????????????#h #????????????????????? | | ??????????????????## #####????????????????????? | | ???????????????????# ?????????????????????????? | | ??????????????????? ??????????????????????????? | | ??????????????????#???????????????????????????? | | ??????????????????????????????????????????????? | | ??????????????????????????????????????????????? | | ??????????????????????????????????????????????? | | ??????????????????????????????????????????????? | | ??????????????????????????????????????????????? | | ??????????????????????????????????????????????? | | ??????????????????????????????????????????????? | | ??????????????????????????????????????????????? | | ??????????????????????????????????????????????? | | ??????????????????????????????????????????????? | | ??????????????????????????????????????????????? | | ??????????????????????????????????????????????? | | ??????????????????????????????????????????????? | | ??????????????????????????????????????????????? | | ??????????????????????????????????????????????? | | ??????????????????????????????????????????????? | | ??????????????????????????????????????????????? | | ??????????????????????????????????????????????? | | ??????????????????????????????????????????????? | +----------------------------------------------------+ Best States ------------- Heat Dissipation 28 Energy Generation 19 Energy Capacity 265 Matter Stores 450 Matter Capacity 450 Sight Range 16 Terrain Scan Density 10 Armor Coverage 225 Evasion (%) 40 Targeting Accuracy 12 Armor Integrity Analysis 20 Recoil Reduction 2 Item Schematics ----------------- Hcp. Storage Unit | -10/Materials | Hacked Med. Armor Plating | -9/Materials | Scanalyzed Robot Schematics ------------------ None Fabricated ------------ Nothing Alien Tech Used ----------------- None Achievements -------------- None Challenges ------------ None Game ------ Seed CarbideAntimissileBeam Manual? 0 Play Time 00:24:36 Cumulative 523.0 hours Start 2021.11.29 @ 02:30:54 End 2021.11.29 @ 02:56:53 Sessions 1 Manual Loads 0 Difficulty Rogue Special Mode None Game No. 512 Rogue 512 Adventurer 0 Explorer 0 Win Type - Total 14 Types 9/1/3/1/0/0/0/0/0 Lore% 86 Gallery% 94 Achievement% 74 Wizard Run 0 Options --------- ASCII 0 Keyboard 0 Movement Mouse Keybinds 1 Fullscreen 2 Font 24/Smallcaps Map View 76x50 Tactical HUD 1 Map Filters NONE Filters NONE Steam 1 RUN: b83e213d-8eec-489a-8bc0-9f75f15b0a48